fUSD/lending_fUSD_20260112
["ID","MTS","AMOUNT","RATE_DAILY","PERIOD"]
[401448460,1768229440154,-150.0,0.00017432,2]
[401448462,1768229440164,-150.0,0.00017471,2]
[401448464,1768229440173,-158.95584315,0.00017472,2]
[401448466,1768229440183,-150.0,0.00017475,2]
[401448468,1768229440192,-150.0,0.00017486,2]
[401448470,1768229440202,-2000.0,0.000175,2]
[401448472,1768229440211,-4249.072672,0.00017501,2]
[401448474,1768229440221,-150.0,0.00017526,2]
[401448476,1768229440231,-150.0,0.0001755,2]
[401448478,1768229440243,-1000.0,0.00017565,2]
[401448480,1768229440252,-150.0,0.00017576,2]
[401448482,1768229440261,-150.0,0.00017614,2]
[401448485,1768229440271,-500.0,0.0001762,2]
[401448487,1768229440281,-1000.0,0.00017621,2]
[401448489,1768229440291,-502.91261306,0.00017621,2]
[401448491,1768229440300,-1000.0,0.00017621,2]
[401448493,1768229440309,-1000.0,0.00017621,2]
[401448495,1768229440317,-150.0,0.00017621,2]
[401448496,1768229440327,-150.0,0.00017625,2]
[401448497,1768229440336,-972.79917298,0.00017638,2]
[401448498,1768229440345,-3608.85866224,0.0001764,2]
[401448499,1768229440355,-324.05202517,0.00017647,2]
[401448500,1768229440365,-553.64373807,0.00017647,2]
[401448501,1768229440374,-1280.0,0.0001766,2]
[401448502,1768229440384,-1964.498,0.00017668,2]
[401448503,1768229440395,-174.58,0.00017668,2]
[401448504,1768229440408,-150.0,0.00017682,2]
[401448505,1768229440417,-500.0,0.00017689,2]
[401448506,1768229440427,-214.65,0.0001769,2]
[401448507,1768229440437,-500.0,0.00017698,2]
[401448508,1768229440447,-153.68270293,0.00017698,2]
[401448509,1768229440456,-150.0,0.00017698,2]
[401448510,1768229440467,-500.0,0.00017698,2]
[401448511,1768229440478,-500.0,0.00017698,2]
[401448512,1768229440487,-451.0,0.00017698,2]
[401448513,1768229440496,-500.0,0.00017698,2]
[401448514,1768229440506,-150.0,0.00017698,2]
[401448515,1768229440514,-500.0,0.00017698,2]
[401448516,1768229440524,-150.0,0.00017698,2]
[401448517,1768229440533,-500.0,0.00017698,2]
[401448518,1768229440542,-150.0,0.00017698,2]
[401448519,1768229440551,-150.0,0.00017698,2]
[401448520,1768229440560,-150.0,0.000177,2]
[401448521,1768229440569,-1000.0,0.000177,2]
[401448522,1768229440578,-4249.072672,0.00017701,2]
[401448523,1768229440587,-157.62,0.00017711,2]
[401448524,1768229440596,-150.0,0.00017716,2]
[401448525,1768229440605,-150.0,0.00017743,2]
[401448526,1768229440614,-277.61181985,0.00017752,2]
[401448527,1768229440623,-637.78448158,0.00017752,2]
[401448528,1768229440632,-1037.48889957,0.00017752,2]
[401448529,1768229440642,-1465.24396967,0.00017752,2]
[401448530,1768229440652,-1895.9886,0.00017752,2]
[401448531,1768229440661,-500.0,0.00017753,2]
[401448532,1768229440669,-150.0,0.00017753,2]
[401448533,1768229440678,-500.0,0.00017753,2]
[401448534,1768229440687,-500.0,0.00017753,2]
[401448535,1768229440696,-451.0,0.00017753,2]
[401448536,1768229440705,-500.0,0.00017753,2]
[401448537,1768229440714,-150.0,0.00017753,2]
[401448538,1768229440723,-500.0,0.00017753,2]
[401448539,1768229440732,-269.59648638,0.00017753,2]
[401448540,1768229440741,-500.0,0.00017753,2]
[401448541,1768229440751,-150.0,0.00017753,2]
[401448542,1768229440760,-150.0,0.00017775,2]
[401448543,1768229440769,-500.0,0.00017781,2]
[401448544,1768229440778,-204.65,0.00017785,2]
[401448545,1768229440787,-150.0,0.00017788,2]
[401448546,1768229440796,-1000.0,0.000178,2]
[401448547,1768229440805,-156.587,0.00017807,2]
[401448548,1768229440814,-500.0,0.00017808,2]
[401448549,1768229440823,-500.0,0.00017808,2]
[401448550,1768229440832,-500.0,0.00017808,2]
[401448551,1768229440842,-451.0,0.00017808,2]
[401448552,1768229440851,-500.0,0.00017808,2]
[401448553,1768229440861,-150.0,0.00017808,2]
[401448554,1768229440870,-500.0,0.00017808,2]
[401448555,1768229440879,-500.0,0.00017808,2]
[401448556,1768229440888,-200.0,0.00017808,2]
[401448557,1768229440898,-150.0,0.00017808,2]
[401448558,1768229440911,-150.0,0.00017811,2]
[401448559,1768229440921,-2017.06754,0.0001782,2]
[401448560,1768229440930,-2017.06755,0.0001782,2]
[401448561,1768229440940,-2017.06754,0.0001783,2]
[401448562,1768229440951,-150.0,0.0001785,2]
[401448563,1768229440961,-200.0,0.00017856,2]
[401448564,1768229440970,-2017.06755,0.0001786,2]
[401448565,1768229440982,-500.0,0.00017862,2]
[401448566,1768229440992,-500.0,0.00017862,2]
[401448567,1768229441002,-500.0,0.00017862,2]
[401448568,1768229441012,-451.0,0.00017862,2]
[401448569,1768229441021,-500.0,0.00017862,2]
[401448570,1768229441031,-150.0,0.00017862,2]
[401448571,1768229441040,-500.0,0.00017862,2]
[401448572,1768229441050,-500.0,0.00017862,2]
[401448573,1768229441059,-150.0,0.00017863,2]
[401448574,1768229441068,-150.0,0.00017871,2]
[401448575,1768229441078,-668.19293152,0.00017879,2]
[401448576,1768229441087,-2017.06754,0.0001788,2]
[401448577,1768229441096,-668.19293152,0.00017882,2]
[401448578,1768229441106,-668.19293152,0.00017885,2]
[401448579,1768229441115,-668.19293152,0.00017888,2]
[401448580,1768229441124,-668.19293152,0.00017891,2]
[401448581,1768229441133,-668.19293152,0.00017894,2]
[401448582,1768229441142,-150.0,0.00017894,2]
[401448583,1768229441155,-668.19293152,0.00017897,2]
[401448584,1768229441165,-19999.1346,0.000179,2]
[401448585,1768229441174,-1000.0,0.000179,2]
[401448586,1768229441184,-668.19293152,0.000179,2]
[401448587,1768229441193,-1491.05373728,0.000179,2]
[401448588,1768229441202,-4249.072672,0.000179,2]
[401448589,1768229441211,-7175.2998557,0.000179,2]
[401448590,1768229441220,-203.68095416,0.000179,2]
[401448591,1768229441230,-1000.0,0.000179,2]
[401448592,1768229441239,-7907.0,0.000179,2]
[401448593,1768229441248,-150.0,0.00017905,2]
[401448594,1768229441257,-2017.06755,0.0001791,2]
[401448595,1768229441267,-500.0,0.00017917,2]
[401448596,1768229441276,-500.0,0.00017917,2]
[401448597,1768229441285,-500.0,0.00017917,2]
[401448598,1768229441294,-451.0,0.00017917,2]
[401448599,1768229441303,-500.0,0.00017917,2]
[401448600,1768229441313,-215.29164788,0.00017917,2]
[401448601,1768229441322,-432.01326872,0.00017917,2]
[401448602,1768229441331,-500.0,0.00017917,2]
[401448603,1768229441340,-150.0,0.00017918,2]
[401448604,1768229441350,-150.0,0.00017925,2]
[401448605,1768229441359,-831.908,0.00017942,2]
[401448606,1768229441368,-569.96,0.00017959,2]
[401448607,1768229441377,-500.0,0.00017972,2]
[401448608,1768229441386,-500.0,0.00017972,2]
[401448609,1768229441396,-451.0,0.00017972,2]
[401448610,1768229441406,-500.0,0.00017972,2]
[401448611,1768229441415,-500.0,0.00017972,2]
[401448612,1768229441424,-224.30171844,0.00017972,2]
[401448613,1768229441433,-6077.0,0.00017973,2]
[401448614,1768229441443,-303.0,0.00017973,2]
[401448615,1768229441452,-10623.0,0.00017973,2]
[401448616,1768229441462,-500.0,0.00017973,2]
[401448617,1768229441472,-500.0,0.00017973,2]
[401448618,1768229441482,-500.0,0.00017973,2]
[401448619,1768229441491,-500.0,0.00017973,2]
[401448620,1768229441501,-500.0,0.00017973,2]
[401448621,1768229441510,-500.0,0.00017973,2]
[401448622,1768229441520,-500.0,0.00017973,2]
[401448623,1768229441529,-500.0,0.00017973,2]
[401448624,1768229441538,-500.0,0.00017973,2]
[401448625,1768229441547,-500.0,0.00017973,2]
[401448626,1768229441556,-315.19949159,0.00017973,2]
[401448627,1768229441565,-500.0,0.00017973,2]
[401448628,1768229441574,-500.0,0.00017973,2]
[401448629,1768229441583,-500.0,0.00017973,2]
[401448630,1768229441592,-500.0,0.00017973,2]
[401448631,1768229441601,-500.0,0.00017973,2]
[401448632,1768229441610,-500.0,0.00017973,2]
[401448633,1768229441619,-500.0,0.00017973,2]
[401448634,1768229441628,-500.0,0.00017973,2]
[401448635,1768229441637,-500.0,0.00017973,2]
[401448636,1768229441646,-500.0,0.00017973,2]
[401448637,1768229441657,-500.0,0.00017973,2]
[401448638,1768229441666,-500.0,0.00017973,2]
[401448639,1768229441675,-500.0,0.00017973,2]
[401448640,1768229441684,-502.71154611,0.00017973,2]
[401448641,1768229441693,-500.0,0.00017973,2]
[401448642,1768229441702,-500.0,0.00017973,2]
[401448643,1768229441711,-150.0,0.00017973,2]
[401448644,1768229441720,-500.0,0.00017973,2]
[401448645,1768229441729,-500.0,0.00017973,2]
[401448646,1768229441737,-500.0,0.00017973,2]
[401448647,1768229441746,-500.0,0.00017973,2]
[401448648,1768229441756,-500.0,0.00017973,2]
[401448649,1768229441765,-500.0,0.00017973,2]
[401448650,1768229441774,-500.0,0.00017973,2]
[401448651,1768229441783,-500.0,0.00017973,2]
[401448652,1768229441791,-500.0,0.00017973,2]
[401448653,1768229441800,-500.0,0.00017973,2]
[401448654,1768229441809,-500.0,0.00017973,2]
[401448655,1768229441818,-152.92662848,0.00017982,2]
[401448656,1768229441828,-500.0,0.00017982,2]
[401448657,1768229441837,-841.28772637,0.0001799,2]
[401448658,1768229441846,-841.28772637,0.0001799,2]
[401448659,1768229441855,-841.28772637,0.0001799,2]
[401448660,1768229441864,-163.44,0.00017995,2]
[401448661,1768229441874,-391.667066,0.00017996,2]
[401448662,1768229441883,-391.667066,0.00017997,2]
[401448663,1768229441892,-500.0,0.00017998,2]
[401448664,1768229441902,-500.0,0.00017998,2]
[401448665,1768229441913,-162.25638013,0.00017999,2]
[401448666,1768229441923,-300.0,0.00017999,2]
[401448667,1768229441932,-1674.5986132,0.00017999,2]
[401448668,1768229441942,-10771.29444415,0.00017999,2]
[401448669,1768229441952,-300.0,0.00017999,2]
[401448670,1768229441961,-58069.1658414,0.00017999,2]
[401448671,1768229441973,-57239.7271742,0.00017999,2]
[401448672,1768229441983,-300.0,0.00017999,2]
[401448673,1768229441993,-300.0,0.00017999,2]
[401448674,1768229442002,-4400.3145317,0.00017999,2]
[401448675,1768229442012,-29033.2785551,0.00017999,2]
[401448676,1768229442021,-666.0,0.00017999,2]
[401448677,1768229442030,-500.0,0.00017999,2]
[401448678,1768229442039,-500.0,0.00017999,2]
[401448679,1768229442050,-500.0,0.00017999,2]
[401448680,1768229442060,-500.0,0.00017999,2]
[401448681,1768229442069,-500.0,0.00017999,2]
[401448682,1768229442078,-500.0,0.00017999,2]
[401448683,1768229442087,-500.0,0.00017999,2]
[401448684,1768229442096,-500.0,0.00017999,2]
[401448685,1768229442105,-500.0,0.00017999,2]
[401448686,1768229442115,-500.0,0.00017999,2]
[401448687,1768229442124,-500.0,0.00017999,2]
[401448688,1768229442134,-500.0,0.00017999,2]
[401448689,1768229442143,-500.0,0.00017999,2]
[401448690,1768229442153,-500.0,0.00017999,2]
[401448691,1768229442162,-500.0,0.00017999,2]
[401448692,1768229442172,-500.0,0.00017999,2]
[401448693,1768229442181,-500.0,0.00017999,2]
[401448694,1768229442190,-500.0,0.00017999,2]
[401448695,1768229442199,-229.7950838,0.00017999,2]
[401448696,1768229442208,-300.0,0.00017999,2]
[401448697,1768229442217,-300.0,0.00017999,2]
[401448698,1768229442227,-666.0,0.00017999,2]
[401448699,1768229442235,-500.0,0.00017999,2]
[401448700,1768229442244,-500.0,0.00017999,2]
[401448701,1768229442253,-500.0,0.00017999,2]
[401448702,1768229442263,-500.0,0.00017999,2]
[401448703,1768229442273,-500.0,0.00017999,2]
[401448704,1768229442283,-500.0,0.00017999,2]
[401448705,1768229442292,-500.0,0.00017999,2]
[401448706,1768229442301,-500.0,0.00017999,2]
[401448707,1768229442312,-500.0,0.00017999,2]
[401448708,1768229442323,-500.0,0.00017999,2]
[401448709,1768229442335,-500.0,0.00017999,2]
[401448710,1768229442344,-500.0,0.00017999,2]
[401448711,1768229442353,-500.0,0.00017999,2]
[401448712,1768229442363,-500.0,0.00017999,2]
[401448713,1768229442374,-500.0,0.00017999,2]
[401448714,1768229442383,-590.29731043,0.00017999,2]
[401448715,1768229442393,-300.0,0.00017999,2]
[401448716,1768229442404,-8299.9795023,0.00017999,2]
[401448717,1768229442414,-52961.4022514,0.00017999,2]
[401448718,1768229442424,-209.63647857,0.00018,2]
[401448719,1768229442433,-233.7382134,0.00018,2]
[401448720,1768229442442,-259.96235589,0.00018,2]
[401448721,1768229442451,-174.59325616,0.00018,2]
[401448722,1768229442460,-178.23387,0.00018,2]
[401448723,1768229442470,-174.28746336,0.00018,2]
[401448724,1768229442479,-150.0,0.00018,2]
[401448725,1768229442488,-150.0,0.00018,2]
[401448726,1768229442496,-152.37123583,0.00018,2]
[401448727,1768229442505,-150.0,0.00018,2]
[401448728,1768229442515,-150.56310478,0.00018,2]
[401448729,1768229442524,-1179668.27153209,0.00018,2]
[401448730,1768229442546,-424.06072804,0.00018,2]
[401448731,1768229442791,-500.0,0.00015257,2]
[401448732,1768229442801,-1101836.03998449,0.00018,2]
[401448733,1768229442812,-306.069,0.00018,2]
[401448734,1768229442826,-5282.45463449,0.00018,2]
[401448735,1768229442838,-1240.01441554,0.00018,2]
[401448736,1768229442850,-850.40377415,0.00018,2]
[401448737,1768229442863,-560.89582069,0.00018,2]
[401448738,1768229442908,-1043.55465848,0.00018,2]
[401448739,1768229442923,-17711.62634503,0.00018,2]
[401448740,1768229442934,-1917.93685357,0.00018,2]
[401448741,1768229442945,-11997.74518315,0.00018,2]
[401448742,1768229442958,-1339.99496718,0.00018,2]
[401448743,1768229442969,-588.0,0.00018,2]
[401448744,1768229442980,-4449.80494527,0.00018,2]
[401448745,1768229442999,-549.76957592,0.00018,2]
[401448746,1768229443012,-512.27802841,0.00018,2]
[401448747,1768229443023,-6443.11814217,0.00018,2]
[401448752,1768229444384,-151.0,0.0001607,2]
[401448753,1768229444394,-151.0,0.0001607,2]
[401448754,1768229444405,-1743.39356299,0.00018,2]
[401448755,1768229444416,-834.90360017,0.00018,2]
[401448756,1768229444427,-1218.10437464,0.00018,2]
[401448757,1768229444438,-363616.55843095,0.00018,2]
[401448758,1768229445117,-2433.80048799,0.00018,2]
[401448759,1768229445129,-633.92371775,0.00018,2]
[401448760,1768229445141,-11877.27714,0.00018,2]
[401448761,1768229445177,-837848.23533145,0.00018,2]
[401448762,1768229445189,-27601.16207674,0.00018,2]
[401448763,1768229445200,-502.99139351,0.00018,2]
[401448764,1768229445244,-257.97490662,0.00018,2]
[401448765,1768229445257,-2287.30477774,0.00018,2]
[401448766,1768229445269,-637.30701203,0.00018,2]
[401448767,1768229445281,-1035.94218875,0.00018,2]
[401448768,1768229445293,-1014.09508778,0.00018,2]
[401448769,1768229445305,-2348.81410111,0.00018,2]
[401448772,1768229446106,-1817.14,0.00018,2]
[401448773,1768229446169,-1138.75,0.00018,2]
[401448774,1768229446181,-292.50000001,0.00018,2]
[401448775,1768229446193,-5413.60522956,0.00018,2]
[401448785,1768229524117,1825.4,0.00011772,2]
[401448786,1768229613312,367.42,0.00027397,120]
[401448787,1768229675506,10000.0,0.00011772,2]
[401448788,1768229689821,0.01,0.00011772,2]
[401448789,1768229689844,9999.99,0.00011772,2]
[401448790,1768229708857,0.02,0.00011772,2]
[401448791,1768229708881,598.62,0.00011772,2]
[401448793,1768229858967,459.72,8.308e-05,2]
[401448794,1768229859220,459.72,8.728e-05,2]
[401448795,1768229859491,459.72,9.148e-05,2]
[401448796,1768229859785,459.72,9.568e-05,2]
[401448797,1768229859971,459.72,9.989e-05,2]
[401448798,1768229860178,459.72,0.00010409,2]
[401448799,1768229860384,459.72,0.00010829,2]
[401448800,1768229860605,459.72,0.00011249,2]
[401448801,1768229860827,459.72,0.00011669,2]
[401448802,1768230004191,-299.70035839,0.00012089,2]
[401448803,1768230004220,-358.74124925,0.00012089,2]
[401448804,1768230007587,4077.01,7.945e-05,2]
[401448805,1768230019465,-249.0,0.00012089,2]
[401448806,1768230019490,-83.09261751,0.00012089,2]
[401448807,1768230068122,869.640091,7.945e-05,2]
[401448810,1768230217448,-17.88613324,0.00012089,2]
[401448811,1768230219279,-162.1637805,0.00012194,2]
[401448812,1768230222104,-137.8362195,0.00012194,2]
[401448813,1768230222129,-21.37092232,0.00012299,2]
[401448819,1768230224045,-228.62907768,0.00012299,2]
[401448820,1768230224068,-71.38412071,0.00012299,2]
[401448821,1768230396363,782.36,0.00027397,120]
[401448822,1768230618981,-246.5644123,0.00012299,2]
[401448834,1768230632249,-4.4355877,0.00012299,2]
[401448835,1768230632261,-94.61405651,0.00012299,2]
[401448836,1768230632272,-300.0,0.00012352,2]
[401448837,1768230632281,-250.0,0.00012404,2]
[401448838,1768230632295,-175.78035579,0.00012509,2]
[401448839,1768230632308,-283.93964421,0.00012509,2]
[401448840,1768230632318,-229.34246668,0.00012609,2]
[401448841,1768230632329,-829.35884972,0.00012903,2]
[401448842,1768230632341,-409.80437381,0.00012903,2]
[401448843,1768230632351,-459.72,0.00012929,2]
[401448844,1768230632361,-300.0,0.00012964,2]
[401448845,1768230632371,-1200.0,0.00012964,2]
[401448846,1768230632381,-300.0,0.00012964,2]
[401448847,1768230632391,-1091.0,0.00012965,2]
[401448848,1768230632400,-500.0,0.00012965,2]
[401448849,1768230632410,-500.0,0.00012965,2]
[401448850,1768230632420,-374.70584946,0.00012965,2]
[401448851,1768230632430,-500.0,0.00012965,2]
[401448852,1768230632442,-500.0,0.00012965,2]
[401448853,1768230632452,-238.85963387,0.00012965,2]
[401448854,1768230632464,-261.14036613,0.00012965,2]
[401448855,1768230632475,-500.0,0.00012965,2]
[401448856,1768230632485,-500.0,0.00012965,2]
[401448857,1768230632495,-600.0,0.00012965,2]
[401448858,1768230632506,-493.82271781,0.00012965,2]
[401448859,1768230632519,-6.17728219,0.00012965,2]
[401448861,1768230632529,-294.98285028,0.00012965,2]
[401448863,1768230632538,-500.0,0.00012965,2]
[401448865,1768230632548,-259.76715259,0.00012965,2]
[401448867,1768230632563,-240.23284741,0.00012965,2]
[401448868,1768230632573,-500.0,0.00012965,2]
[401448869,1768230632583,-500.0,0.00012965,2]
[401448870,1768230632593,-500.0,0.00012965,2]
[401448871,1768230632603,-500.0,0.00012965,2]
[401448872,1768230632613,-381.73376407,0.00012965,2]
[401448873,1768230632626,-118.26623593,0.00012965,2]
[401448874,1768230632636,-500.0,0.00012965,2]
[401448875,1768230632646,-500.0,0.00012965,2]
[401448876,1768230632657,-41.83376407,0.00012965,2]
[401448877,1768230632669,-458.16623593,0.00012965,2]
[401448878,1768230632679,-500.0,0.00012965,2]
[401448879,1768230632690,-500.0,0.00012965,2]
[401448880,1768230632700,-336.31126738,0.00012965,2]
[401448881,1768230632712,-163.68873262,0.00012965,2]
[401448882,1768230632722,-364.73676791,0.00012965,2]
[401448883,1768230632733,-500.0,0.00012965,2]
[401448884,1768230632743,-500.0,0.00012965,2]
[401448885,1768230632752,-500.0,0.00012965,2]
[401448886,1768230632762,-500.0,0.00012965,2]
[401448887,1768230632772,-596.35912896,0.00012966,2]
[401448888,1768230632796,-448.91004039,0.00012966,2]
[401448889,1768230632808,-344.81,0.00012966,2]
[401448890,1768230632821,-282.33286881,0.00012966,2]
[401448891,1768230632833,-1174.43747473,0.00012966,2]
[401448892,1768230632842,-836.01415198,0.00012966,2]
[401448893,1768230632853,-860.0,0.00012966,2]
[401448894,1768230632870,-477.97880591,0.00012966,2]
[401448899,1768230638399,-2456.99894248,0.00012966,2]
[401448900,1768230638409,-6540.34270476,0.00012966,2]
[401448901,1768230638426,-8463.0645,0.00012966,2]
[401448902,1768230638438,-459.72,0.00013349,2]
[401448903,1768230638450,-299.99,0.00013349,2]
[401448904,1768230638460,-150.99,0.00013349,2]
[401448905,1768230638470,-300.0,0.00013529,2]
[401448906,1768230638481,-300.0,0.00013529,2]
[401448907,1768230638491,-250.0,0.00013529,2]
[401448908,1768230638501,-250.0,0.00013529,2]
[401448909,1768230638511,-300.0,0.00013529,2]
[401448910,1768230638520,-1000.0,0.00013767,2]
[401448911,1768230638531,-1000.0,0.00013768,2]
[401448912,1768230638540,-284.0,0.00013769,2]
[401448913,1768230638550,-189.0,0.00013769,2]
[401448914,1768230638560,-459.72,0.0001377,2]
[401448915,1768230638570,-8164.61132259,0.0001377,2]
[401448916,1768230638582,-1640.63899908,0.0001377,2]
[401448917,1768230638594,-194.73967833,0.0001377,2]
[401448918,1768230638604,-5877.25,0.0001377,2]
[401448919,1768230638613,-7634.75,0.0001377,2]
[401448920,1768230638623,-3123.17,0.0001377,2]
[401448921,1768230638633,-370.26,0.0001377,2]
[401448923,1768230638644,-4312.52,0.0001377,2]
[401448925,1768230638654,-9999.99,0.0001377,2]
[401448927,1768230638664,-150.99,0.0001377,2]
[401448929,1768230638674,-459.72,0.0001419,2]
[401448931,1768230638684,-420.0,0.00014218,2]
[401448933,1768230638694,-1680.0,0.0001426,2]
[401448935,1768230638705,-459.72,0.0001461,2]
[401448937,1768230638715,-459.72,0.0001503,2]
[401448940,1768230638724,-200.0,0.00015355,2]
[401448943,1768230638735,-500.0,0.00015402,2]
[401448945,1768230638744,-459.72,0.0001545,2]
[401448947,1768230638754,-587.0,0.00015593,2]
[401448949,1768230638764,-2351.0,0.00015686,2]
[401448951,1768230638773,-500.0,0.00015748,2]
[401448953,1768230638783,-459.72,0.0001587,2]
[401448955,1768230638792,-318.9635124,0.000159,2]
[401448957,1768230638802,-1000.0,0.00015938,2]
[401448959,1768230638811,-573.52,0.00015942,2]
[401448961,1768230638821,-555.59,0.0001595,2]
[401448963,1768230638831,-674.7,0.00016006,2]
[401448965,1768230638841,-1416.18,0.0001601,2]
[401448967,1768230638851,-317.99,0.0001604,2]
[401448969,1768230638860,-500.0,0.0001611,2]
[401448971,1768230638870,-500.0,0.00016142,2]
[401448973,1768230638879,-172.34419435,0.00016142,2]
[401448975,1768230638889,-459.41634794,0.00016142,2]
[401448977,1768230638899,-174.16544342,0.00016142,2]
[401448979,1768230638908,-246.91812115,0.00016142,2]
[401448981,1768230638917,-18841.29,0.00016143,2]
[401448983,1768230638927,-209.63647857,0.000162,2]
[401448985,1768230638937,-150.0,0.000162,2]
[401448987,1768230638947,-178.23387,0.000162,2]
[401448989,1768230638956,-150.0,0.000162,2]
[401448991,1768230638966,-150.0,0.000162,2]
[401448993,1768230638976,-150.0,0.000162,2]
[401448995,1768230638986,-150.0,0.000162,2]
[401448998,1768230638996,-150.0,0.000162,2]
[401449000,1768230639005,-150.0,0.000162,2]
[401449001,1768230639015,-150.56310478,0.000162,2]
[401449003,1768230639025,-166.66,0.00016268,2]
[401449006,1768230639035,-459.72,0.0001629,2]
[401449007,1768230639045,-317.99,0.00016314,2]
[401449009,1768230639054,-150.0,0.00016371,2]
[401449011,1768230639064,-150.0,0.000164,2]
[401449014,1768230639074,-21884.54,0.00016438,2]
[401449015,1768230639083,-151.0,0.00016438,2]
[401449017,1768230639093,-150.0,0.00016457,2]
[401449020,1768230639103,-27760.73,0.00016473,2]
[401449021,1768230639112,-150.0,0.000165,2]
[401449024,1768230639122,-500.0,0.000165,2]
[401449026,1768230639131,-317.99,0.00016588,2]
[401449028,1768230639143,-150.0,0.000166,2]
[401449029,1768230639153,-1000.0,0.000166,2]
[401449031,1768230639162,-150.0,0.00016714,2]
[401449034,1768230639172,-150.0,0.000168,2]
[401449036,1768230639182,-150.0,0.000168,2]
[401449038,1768230639191,-317.99,0.00016862,2]
[401449040,1768230639203,-339.6165,0.000169,2]
[401449042,1768230639212,-166.66,0.00016939,2]
[401449044,1768230639222,-150.0,0.00016971,2]
[401449046,1768230639232,-40530.47592494,0.00016986,2]
[401449048,1768230639245,-4542.439984,0.00016986,2]
[401449050,1768230639257,-311.59230723,0.00016986,2]
[401449053,1768230639275,-267.0,0.00016986,2]
[401449058,1768230639310,-4932.17178383,0.00016986,2]
[401449060,1768230639319,-1404.4055,0.00016989,2]
[401449062,1768230639329,-150.0,0.00017,2]
[401449064,1768230639340,-250.0,0.00017,2]
[401449066,1768230639349,-776.50436,0.00017,2]
[401449068,1768230639358,-225.13457576,0.00017,2]
[401449069,1768230639367,-6566.35,0.00017024,2]
[401449071,1768230639376,-323.61319503,0.00017073,2]
[401449074,1768230639385,-500.0,0.00017073,2]
[401449076,1768230639395,-500.0,0.00017073,2]
[401449078,1768230639404,-500.0,0.00017073,2]
[401449080,1768230639413,-500.0,0.00017073,2]
[401449081,1768230639424,-201.20066245,0.00017073,2]
[401449083,1768230639433,-500.0,0.00017073,2]
[401449085,1768230639443,-500.0,0.00017073,2]
[401449087,1768230639454,-501.96234831,0.00017073,2]
[401449089,1768230639463,-500.77801395,0.00017073,2]
[401449091,1768230639473,-500.0,0.00017073,2]
[401449092,1768230639482,-500.0,0.00017073,2]
[401449094,1768230639491,-511.71385202,0.00017073,2]
[401449096,1768230639501,-502.77849751,0.00017073,2]
[401449098,1768230639510,-1461.1,0.00017077,2]
[401449100,1768230639520,-1228.04,0.00017092,2]
[401449102,1768230639529,-642.94,0.00017099,2]
[401449104,1768230639538,-334.5472959,0.00017099,2]
[401449106,1768230639548,-533.88981491,0.00017099,2]
[401449108,1768230639557,-500.0,0.00017099,2]
[401449110,1768230639566,-500.0,0.00017099,2]
[401449112,1768230639575,-500.0,0.00017099,2]
[401449114,1768230639585,-500.0,0.00017099,2]
[401449116,1768230639594,-500.0,0.00017099,2]
[401449118,1768230639603,-500.0,0.00017099,2]
[401449120,1768230639612,-500.0,0.00017099,2]
[401449122,1768230639622,-500.0,0.00017099,2]